fUSD/lending_fUSD_20241125
["ID","MTS","AMOUNT","RATE_DAILY","PERIOD"]
[343269672,1732536706618,-1000.0,0.000449,30]
[343269673,1732536706628,-168.85060596,0.00044904,60]
[343269674,1732536706641,-596.54,0.00044931,21]
[343269675,1732536706651,-615.05,0.00044931,21]
[343269676,1732536706660,-2082.25,0.00044931,21]
[343269677,1732536706671,-648.22,0.00044931,21]
[343269678,1732536706680,-1204.4,0.00044931,21]
[343269679,1732536706690,-502.30087602,0.00044931,21]
[343269680,1732536706699,-634.92,0.00044931,21]
[343269681,1732536706709,-817.33,0.00044931,21]
[343269682,1732536706718,-674.77,0.00044931,2]
[343269683,1732536706728,-5549.98,0.00044931,21]
[343269684,1732536706737,-685.58,0.00044931,21]
[343269685,1732536706747,-500.0,0.00044931,21]
[343269686,1732536706756,-702.08,0.00044931,21]
[343269687,1732536706765,-2182.69,0.00044931,21]
[343269688,1732536706775,-100000.0,0.00045,10]
[343269689,1732536706784,-20000.0,0.00045,4]
[343269690,1732536706944,-828.0,0.00045,25]
[343269691,1732536706954,-151.0,0.00045,14]
[343269692,1732536706965,-151.0,0.00045,14]
[343269693,1732536706974,-151.0,0.00045,14]
[343269694,1732536706983,-151.0,0.00045,14]
[343269695,1732536706993,-317.6299794,0.00045022,2]
[343269696,1732536707002,-500.0,0.00045106,2]
[343269697,1732536707012,-596.55,0.00045205,21]
[343269698,1732536707023,-615.25,0.00045205,21]
[343269699,1732536707032,-2082.46546063,0.00045205,21]
[343269700,1732536707042,-648.24,0.00045205,21]
[343269701,1732536707052,-1204.46060465,0.00045205,21]
[343269702,1732536707062,-635.14241314,0.00045205,21]
[343269703,1732536707072,-817.46661596,0.00045205,21]
[343269704,1732536707082,-674.86,0.00045205,2]
[343269705,1732536707092,-5550.04939853,0.00045205,21]
[343269706,1732536707101,-685.60528689,0.00045205,21]
[343269707,1732536707111,-486.55963007,0.00045205,21]
[343269708,1732536707123,-702.12514197,0.00045205,21]
[343269709,1732536707133,-1062.06,0.00045205,120]
[343269710,1732536707143,-2182.90487606,0.00045205,21]
[343269711,1732536707154,-200.0,0.00045205,2]
[343269712,1732536707164,-204.0,0.0004524,30]
[343269713,1732536707174,-204.0,0.0004524,30]
[343269714,1732536707187,-273.81,0.00045359,120]
[343269715,1732536707198,-151.0,0.0004538,2]
[343269716,1732536707208,-150.0,0.00045589,10]
[343269717,1732536707218,-1062.06,0.00045616,120]
[343269718,1732536707227,-18937.62937292,0.00045672,15]
[343269719,1732536707236,-409.71,0.00045723,60]
[343269720,1732536707246,-151.0,0.00045753,120]
[343269721,1732536707256,-816.0,0.00045798,2]
[343269722,1732536707266,-152.1,0.00045871,2]
[343269723,1732536707276,-500.0,0.00045898,120]
[343269724,1732536707286,-500.0,0.00045898,120]
[343269725,1732536707295,-2000.0,0.0004592,2]
[343269726,1732536707304,-1600.0,0.0004592,2]
[343269727,1732536707314,-647.78672185,0.00045994,30]
[343269728,1732536707324,-269.42411782,0.00045994,30]
[343269729,1732536707335,-150.21977623,0.00045994,30]
[343269730,1732536707344,-157.02303408,0.00045994,30]
[343269731,1732536707353,-207.09345256,0.00045994,30]
[343269732,1732536707363,-150.0,0.00045994,30]
[343269733,1732536707373,-280.21185079,0.00045994,30]
[343269734,1732536707383,-150.0,0.00045994,30]
[343269735,1732536707393,-150.0,0.00045994,30]
[343269736,1732536707403,-150.33580627,0.00045994,30]
[343269737,1732536707413,-150.0,0.00045994,30]
[343269738,1732536707423,-154.84770057,0.00045994,30]
[343269739,1732536707433,-167.80355677,0.00045994,30]
[343269740,1732536707442,-150.12143143,0.00045994,30]
[343269741,1732536707453,-150.0,0.00045994,30]
[343269742,1732536707462,-100000.0,0.00046,13]
[343269743,1732536707473,-3000.0,0.00046,116]
[343269744,1732536707483,-1595.531502,0.00046,60]
[343269745,1732536707492,-1062.06,0.00046027,120]
[343269746,1732536707501,-172.88627789,0.00046027,2]
[343269747,1732536707512,-647.78672185,0.00046045,30]
[343269748,1732536707522,-269.42411782,0.00046045,30]
[343269749,1732536707532,-207.09345256,0.00046045,30]
[343269750,1732536707541,-150.0,0.0004608,30]
[343269751,1732536707551,-647.78672185,0.00046097,30]
[343269752,1732536707561,-269.42411782,0.00046097,30]
[343269753,1732536707571,-207.09345256,0.00046097,30]
[343269754,1732536707581,-24346.82432277,0.00046108,2]
[343269755,1732536707590,-150.0,0.00046115,30]
[343269756,1732536707601,-150.0,0.00046117,30]
[343269757,1732536707611,-150.0,0.00046117,30]
[343269758,1732536707621,-235.002334,0.00046148,14]
[343269759,1732536707633,-151.0,0.00046148,14]
[343269760,1732536707643,-206.835515,0.00046148,14]
[343269761,1732536707653,-206.835515,0.00046148,14]
[343269762,1732536707663,-647.78672185,0.00046148,30]
[343269763,1732536707674,-269.42411782,0.00046148,30]
[343269764,1732536707683,-207.09345256,0.00046148,30]
[343269765,1732536707692,-150.0,0.00046148,30]
[343269766,1732536707703,-150.0,0.00046167,30]
[343269767,1732536707713,-647.78672185,0.000462,30]
[343269768,1732536707723,-269.42411782,0.000462,30]
[343269769,1732536707732,-207.09345256,0.000462,30]
[343269770,1732536707742,-3892.30198129,0.00046207,4]
[343269771,1732536707751,-150.78,0.00046233,2]
[343269772,1732536707761,-150.0,0.00046237,30]
[343269773,1732536707771,-647.78672185,0.00046252,30]
[343269774,1732536707781,-269.42411782,0.00046252,30]
[343269775,1732536707790,-207.09345256,0.00046252,30]
[343269776,1732536707800,-150.0,0.00046253,30]
[343269777,1732536707809,-685.17,0.00046266,2]
[343269778,1732536707819,-204.0,0.0004628,30]
[343269779,1732536707829,-204.0,0.0004628,30]
[343269780,1732536707838,-500.0,0.000463,17]
[343269781,1732536707847,-500.0,0.000463,17]
[343269782,1732536707856,-500.0,0.000463,17]
[343269783,1732536707865,-500.0,0.000463,17]
[343269784,1732536707874,-603.33607759,0.000463,17]
[343269785,1732536707884,-500.0,0.000463,17]
[343269786,1732536707894,-500.0,0.000463,17]
[343269787,1732536707905,-500.0,0.000463,17]
[343269788,1732536707915,-500.0,0.000463,17]
[343269789,1732536707924,-500.0,0.000463,17]
[343269790,1732536707934,-500.0,0.000463,17]
[343269791,1732536707944,-500.0,0.000463,17]
[343269792,1732536707955,-500.0,0.000463,17]
[343269793,1732536707964,-500.0,0.000463,17]
[343269794,1732536707973,-500.0,0.000463,17]
[343269795,1732536707982,-151.0,0.000463,14]
[343269796,1732536707992,-151.0,0.000463,14]
[343269797,1732536708002,-647.78672185,0.00046303,30]
[343269798,1732536708012,-269.42411782,0.00046303,30]
[343269799,1732536708022,-207.09345256,0.00046303,30]
[343269800,1732536708032,-150.0,0.00046303,30]
[343269801,1732536708042,-867.5,0.00046337,30]
[343269802,1732536708052,-725.72,0.00046337,30]
[343269803,1732536708063,-150.0,0.0004634,30]
[343269804,1732536708075,-647.78672185,0.00046355,30]
[343269805,1732536708086,-269.42411782,0.00046355,30]
[343269806,1732536708096,-207.09345256,0.00046355,30]
[343269807,1732536708107,-151.0,0.00046356,120]
[343269808,1732536708120,-150.0,0.00046359,30]
[343269809,1732536708130,-647.78672185,0.00046407,30]
[343269810,1732536708141,-269.42411782,0.00046407,30]
[343269811,1732536708151,-207.09345256,0.00046407,30]
[343269812,1732536708162,-150.0,0.00046427,30]
[343269813,1732536708172,-1062.06,0.00046438,120]
[343269814,1732536708182,-211.9949351,0.00046446,120]
[343269815,1732536708194,-647.78672185,0.00046458,30]
[343269816,1732536708204,-269.42411782,0.00046458,30]
[343269817,1732536708215,-207.09345256,0.00046458,30]
[343269818,1732536708225,-150.0,0.00046458,30]
[343269819,1732536708237,-1010.96,0.00046465,90]
[343269820,1732536708247,-150.0,0.0004648,30]
[343269821,1732536708257,-276.057179,0.000465,120]
[343269822,1732536708273,-647.78672185,0.0004651,30]
[343269823,1732536708284,-269.42411782,0.0004651,30]
[343269824,1732536708294,-207.09345256,0.0004651,30]
[343269825,1732536708304,-150.0,0.00046513,30]
[343269826,1732536708314,-647.78672185,0.00046561,30]
[343269827,1732536708324,-269.42411782,0.00046561,30]
[343269828,1732536708333,-207.09345256,0.00046561,30]
[343269829,1732536708343,-4000.0,0.00046575,2]
[343269830,1732536708353,-500.0,0.00046575,120]
[343269831,1732536708363,-1280.0,0.0004658,120]
[343269832,1732536708372,-150.0,0.000466,30]
[343269833,1732536708382,-151.0,0.000466,14]
[343269834,1732536708392,-231.435469,0.000466,14]
[343269835,1732536708402,-2500.0,0.000466,14]
[343269836,1732536708412,-231.435469,0.000466,14]
[343269837,1732536708422,-2500.0,0.000466,14]
[343269838,1732536708432,-10000.0,0.000466,120]
[343269839,1732536708442,-150.0,0.00046602,30]
[343269840,1732536708451,-647.78672185,0.00046613,30]
[343269841,1732536708462,-269.42411782,0.00046613,30]
[343269842,1732536708474,-207.09345256,0.00046613,30]
[343269843,1732536708484,-150.0,0.00046613,30]
[343269844,1732536708494,-647.78672185,0.00046665,30]
[343269845,1732536708504,-269.42411782,0.00046665,30]
[343269846,1732536708514,-207.09345256,0.00046665,30]
[343269847,1732536708526,-150.0,0.00046687,30]
[343269848,1732536708537,-647.78672185,0.00046716,30]
[343269849,1732536708547,-269.42411782,0.00046716,30]
[343269850,1732536708557,-207.09345256,0.00046716,30]
[343269851,1732536708566,-150.0,0.00046724,30]
[343269852,1732536708576,-647.78672185,0.00046768,30]
[343269853,1732536708585,-269.42411782,0.00046768,30]
[343269854,1732536708596,-207.09345256,0.00046768,30]
[343269855,1732536708615,-150.0,0.00046768,30]
[343269856,1732536708626,-150.0,0.00046773,30]
[343269857,1732536708640,-647.78672185,0.0004682,30]
[343269858,1732536708650,-269.42411782,0.0004682,30]
[343269859,1732536708660,-207.09345256,0.0004682,30]
[343269860,1732536708670,-150.0,0.00046845,30]
[343269861,1732536708680,-1062.06,0.00046849,120]
[343269862,1732536708691,-150.0,0.0004686,30]
[343269863,1732536708701,-647.78672185,0.00046871,30]
[343269864,1732536708712,-269.42411782,0.00046871,30]
[343269865,1732536708722,-207.09345256,0.00046871,30]
[343269866,1732536708731,-700.0,0.000469,17]
[343269867,1732536708742,-434.13,0.0004691,30]
[343269868,1732536708753,-647.78672185,0.00046923,30]
[343269869,1732536708764,-269.42411782,0.00046923,30]
[343269870,1732536708776,-207.09345256,0.00046923,30]
[343269871,1732536708787,-150.0,0.00046923,30]
[343269872,1732536708797,-150.0,0.00046946,30]
[343269873,1732536708807,-18937.62937292,0.00046959,15]
[343269874,1732536708817,-150.0,0.00046967,30]
[343269875,1732536708828,-647.78672185,0.00046974,30]
[343269876,1732536708840,-269.42411782,0.00046974,30]
[343269877,1732536708851,-207.09345256,0.00046974,30]
[343269878,1732536708861,-100000.0,0.00047,35]
[343269879,1732536708871,-170.53583351,0.00047,30]
[343269880,1732536708880,-151.0,0.00047,14]
[343269881,1732536708893,-1000.0,0.0004701,2]
[343269882,1732536708903,-647.78672185,0.00047026,30]
[343269883,1732536708912,-269.42411782,0.00047026,30]
[343269884,1732536708921,-207.09345256,0.00047026,30]
[343269885,1732536708931,-150.0,0.00047033,30]
[343269886,1732536708941,-5000.0,0.00047038,15]
[343269887,1732536708951,-647.78672185,0.00047078,30]
[343269888,1732536708962,-269.42411782,0.00047078,30]
[343269889,1732536708972,-207.09345256,0.00047078,30]
[343269890,1732536708982,-150.0,0.00047078,30]
[343269891,1732536708991,-150.0,0.00047089,30]
[343269892,1732536709001,-150.0,0.0004712,30]
[343269893,1732536709011,-647.78672185,0.00047129,30]
[343269894,1732536709022,-269.42411782,0.00047129,30]
[343269895,1732536709032,-207.09345256,0.00047129,30]
[343269896,1732536709042,-647.78672185,0.00047181,30]
[343269897,1732536709052,-269.42411782,0.00047181,30]
[343269898,1732536709062,-207.09345256,0.00047181,30]
[343269899,1732536709072,-150.0,0.00047206,30]
[343269900,1732536709082,-150.0,0.0004721,30]
[343269901,1732536709092,-3336.97,0.00047215,15]
[343269902,1732536709102,-647.78672185,0.00047232,30]
[343269903,1732536709116,-269.42411782,0.00047232,30]
[343269904,1732536709126,-207.09345256,0.00047232,30]
[343269905,1732536709139,-150.0,0.00047232,30]
[343269906,1732536709149,-1062.06,0.0004726,120]
[343269907,1732536709159,-150.0,0.00047271,30]
[343269908,1732536709169,-317.6299794,0.00047278,2]
[343269909,1732536709179,-647.78672185,0.00047284,30]
[343269910,1732536709191,-269.42411782,0.00047284,30]
[343269911,1732536709202,-207.09345256,0.00047284,30]
[343269912,1732536709212,-5000.0,0.00047285,15]
[343269913,1732536709222,-5000.0,0.00047286,15]
[343269914,1732536709232,-150.0,0.00047293,30]
[343269915,1732536709242,-204.0,0.0004732,30]
[343269916,1732536709391,-204.0,0.0004732,30]
[343269917,1732536709401,-150.0,0.00047332,30]
[343269918,1732536709411,-647.78672185,0.00047336,30]
[343269919,1732536709421,-269.42411782,0.00047336,30]
[343269920,1732536709431,-207.09345256,0.00047336,30]
[343269921,1732536709442,-150.0,0.00047379,30]
[343269922,1732536709452,-647.78672185,0.00047387,30]
[343269923,1732536709463,-269.42411782,0.00047387,30]
[343269924,1732536709472,-207.09345256,0.00047387,30]
[343269925,1732536709482,-150.0,0.00047387,30]
[343269926,1732536709491,-1164.66,0.00047413,15]
[343269927,1732536709501,-152.0,0.00047418,4]
[343269928,1732536709511,-647.78672185,0.00047439,30]
[343269929,1732536709521,-269.42411782,0.00047439,30]
[343269930,1732536709530,-207.09345256,0.00047439,30]
[343269931,1732536709540,-150.0,0.00047454,30]
[343269932,1732536709550,-150.0,0.00047466,30]
[343269933,1732536709560,-647.78672185,0.00047491,30]
[343269934,1732536709570,-269.42411782,0.00047491,30]
[343269935,1732536709579,-207.09345256,0.00047491,30]
[343269936,1732536709589,-4011.16,0.00047506,15]
[343269937,1732536709599,-647.78672185,0.00047542,30]
[343269938,1732536709608,-269.42411782,0.00047542,30]
[343269939,1732536709618,-207.09345256,0.00047542,30]
[343269940,1732536709628,-150.0,0.00047542,30]
[343269941,1732536709640,-5000.0,0.00047548,15]
[343269942,1732536709650,-150.0,0.00047553,30]
[343269943,1732536709660,-150.0,0.00047575,30]
[343269944,1732536709670,-647.78672185,0.00047594,30]
[343269945,1732536709680,-269.42411782,0.00047594,30]
[343269946,1732536709691,-207.09345256,0.00047594,30]
[343269947,1732536709700,-730.80440922,0.00047597,120]
[343269948,1732536709710,-730.80440922,0.00047597,120]
[343269949,1732536709719,-730.80440922,0.00047597,120]
[343269950,1732536709729,-730.80440922,0.00047597,120]
[343269951,1732536709738,-730.80440922,0.00047597,120]
[343269952,1732536709750,-730.80440922,0.00047597,120]
[343269953,1732536709759,-730.80440922,0.00047597,120]
[343269954,1732536709769,-730.80440922,0.00047597,120]
[343269955,1732536709778,-730.80440922,0.00047597,120]
[343269956,1732536709788,-730.80440922,0.00047597,120]
[343269957,1732536709797,-730.80440922,0.00047597,120]
[343269958,1732536709807,-730.80440922,0.00047597,120]
[343269959,1732536709817,-730.80440922,0.00047597,120]
[343269960,1732536709827,-730.80440922,0.00047597,120]
[343269961,1732536709836,-730.80440922,0.00047597,120]
[343269962,1732536709846,-730.80440922,0.00047597,120]
[343269963,1732536709855,-730.80440922,0.00047597,120]
[343269964,1732536709865,-730.80440922,0.00047597,120]
[343269965,1732536709875,-730.80440922,0.00047597,120]
[343269966,1732536709886,-730.8,0.00047597,120]
[343269967,1732536709896,-1096.20661384,0.00047597,120]
[343269968,1732536709909,-1096.20661384,0.00047597,120]
[343269969,1732536709920,-1096.20661384,0.00047597,120]
[343269970,1732536709930,-1096.20661384,0.00047597,120]
[343269971,1732536709940,-1096.20661384,0.00047597,120]
[343269972,1732536709949,-1096.20661384,0.00047597,120]
[343269973,1732536709959,-1096.20661384,0.00047597,120]
[343269974,1732536709968,-1096.20661384,0.00047597,120]
[343269975,1732536709978,-1096.20661384,0.00047597,120]
[343269976,1732536709987,-1096.20661384,0.00047597,120]
[343269977,1732536709996,-1096.20661384,0.00047597,120]
[343269978,1732536710006,-1096.20661384,0.00047597,120]
[343269979,1732536710015,-1096.20661384,0.00047597,120]
[343269980,1732536710025,-1096.20661384,0.00047597,120]
[343269981,1732536710035,-1096.20661384,0.00047597,120]
[343269982,1732536710044,-1096.20661384,0.00047597,120]
[343269983,1732536710054,-154.33485761,0.00047597,120]
[343269984,1732536710063,-154.33485761,0.00047597,120]
[343269985,1732536710073,-154.33485761,0.00047597,120]
[343269986,1732536710082,-154.33485761,0.00047597,120]
[343269987,1732536710092,-154.33485761,0.00047597,120]
[343269988,1732536710101,-154.33485761,0.00047597,120]
[343269989,1732536710113,-154.33485761,0.00047597,120]
[343269990,1732536710123,-154.33485761,0.00047597,120]
[343269991,1732536710134,-154.33485761,0.00047597,120]
[343269992,1732536710144,-154.33485761,0.00047597,120]
[343269993,1732536710155,-154.33,0.00047597,120]
[343269994,1732536710164,-159.15782191,0.00047597,120]
[343269995,1732536710174,-159.15782191,0.00047597,120]
[343269996,1732536710184,-159.15782191,0.00047597,120]
[343269997,1732536710195,-159.15782191,0.00047597,120]
[343269998,1732536710205,-159.15782191,0.00047597,120]
[343269999,1732536710214,-159.15782191,0.00047597,120]
[343270000,1732536710224,-159.15782191,0.00047597,120]
[343270001,1732536710233,-159.15782191,0.00047597,120]
[343270002,1732536710244,-159.15782191,0.00047597,120]
[343270003,1732536710259,-159.15782191,0.00047597,120]
[343270004,1732536710269,-159.15782191,0.00047597,120]
[343270005,1732536710279,-159.15782191,0.00047597,120]
[343270006,1732536710288,-692.41939268,0.00047597,120]
[343270007,1732536710297,-692.41939268,0.00047597,120]
[343270008,1732536710306,-692.41939268,0.00047597,120]
[343270009,1732536710315,-692.41939268,0.00047597,120]
[343270010,1732536710324,-692.41939268,0.00047597,120]
[343270011,1732536710333,-692.41939268,0.00047597,120]
[343270012,1732536710342,-692.41939268,0.00047597,120]
[343270013,1732536710352,-692.41939268,0.00047597,120]
[343270014,1732536710362,-692.41939268,0.00047597,120]
[343270015,1732536710371,-692.41939268,0.00047597,120]
[343270016,1732536710380,-692.41939268,0.00047597,120]
[343270017,1732536710393,-692.41939268,0.00047597,120]
[343270018,1732536710403,-692.41939268,0.00047597,120]
[343270019,1732536710412,-692.41939268,0.00047597,120]
[343270020,1732536710425,-692.41939268,0.00047597,120]
[343270021,1732536710443,-692.41939268,0.00047597,120]
[343270022,1732536710460,-692.41939268,0.00047597,120]
[343270023,1732536710477,-692.41939268,0.00047597,120]
[343270024,1732536710491,-692.41939268,0.00047597,120]
[343270025,1732536710508,-692.41,0.00047597,120]
[343270026,1732536710525,-1038.62908902,0.00047597,120]
[343270027,1732536710543,-1038.62908902,0.00047597,120]
[343270028,1732536710562,-1038.62908902,0.00047597,120]
[343270029,1732536710578,-1038.62908902,0.00047597,120]
[343270030,1732536710596,-1038.62908902,0.00047597,120]
[343270031,1732536710610,-1038.62908902,0.00047597,120]
[343270032,1732536710626,-1038.62908902,0.00047597,120]
[343270033,1732536710642,-1038.62908902,0.00047597,120]
[343270034,1732536710657,-1038.62908902,0.00047597,120]
[343270035,1732536710671,-1038.62908902,0.00047597,120]
[343270036,1732536710688,-1038.62908902,0.00047597,120]
[343270037,1732536710703,-1038.62908902,0.00047597,120]
[343270038,1732536710717,-1038.62908902,0.00047597,120]
[343270039,1732536710732,-1038.62908902,0.00047597,120]
[343270040,1732536710746,-1038.62908902,0.00047597,120]
[343270041,1732536710761,-1038.62908902,0.00047597,120]
[343270042,1732536710775,-150.0,0.00047639,30]
[343270043,1732536710790,-647.78672185,0.00047645,30]
[343270044,1732536710806,-269.42411782,0.00047645,30]
[343270045,1732536710820,-207.09345256,0.00047645,30]
[343270046,1732536710835,-5000.0,0.00047668,15]
[343270047,1732536710849,-1062.06,0.00047671,120]
[343270048,1732536710864,-159.15782191,0.00047676,120]
[343270049,1732536710880,-647.78672185,0.00047697,30]
[343270050,1732536710898,-269.42411782,0.00047697,30]
[343270051,1732536710913,-207.09345256,0.00047697,30]
[343270052,1732536710927,-150.0,0.00047697,30]
[343270053,1732536710943,-150.0,0.00047697,30]
[343270054,1732536710961,-13794.03065853,0.000477,10]
[343270055,1732536710975,-150.0,0.00047726,30]
[343270056,1732536710990,-1163.0,0.00047744,2]
[343270057,1732536711004,-150.0,0.00047744,2]
[343270058,1732536711020,-1437.999,0.00047744,2]
[343270059,1732536711034,-13677.0,0.00047744,2]
[343270060,1732536711050,-229.87,0.00047748,7]
[343270061,1732536711065,-7556.44,0.00047748,7]
[343270062,1732536711080,-647.78672185,0.00047749,30]
[343270063,1732536711096,-269.42411782,0.00047749,30]
[343270064,1732536711112,-207.09345256,0.00047749,30]
[343270065,1732536711139,-2249.39,0.00047752,15]
[343270066,1732536711160,-647.78672185,0.000478,30]
[343270067,1732536711176,-269.42411782,0.000478,30]
[343270068,1732536711193,-207.09345256,0.000478,30]
[343270069,1732536711209,-152.29,0.00047806,120]
[343270070,1732536711224,-150.0,0.00047813,30]
[343270071,1732536711240,-150.0,0.00047819,30]
[343270072,1732536711254,-500.0,0.00047846,2]
[343270073,1732536711270,-647.78672185,0.00047852,30]
[343270074,1732536711287,-269.42411782,0.00047852,30]
[343270075,1732536711302,-207.09345256,0.00047852,30]
[343270076,1732536711317,-150.0,0.00047852,30]
[343270077,1732536711332,-5000.0,0.00047894,15]
[343270078,1732536711347,-1000.0,0.00047899,2]
[343270079,1732536711361,-150.0,0.00047899,30]
[343270080,1732536711376,-647.78672185,0.00047904,30]
[343270081,1732536711393,-269.42411782,0.00047904,30]
[343270082,1732536711409,-207.09345256,0.00047904,30]
[343270083,1732536711424,-150.0,0.0004794,30]
[343270084,1732536711439,-647.78672185,0.00047955,30]
[343270085,1732536711454,-269.42411782,0.00047955,30]
[343270086,1732536711470,-207.09345256,0.00047955,30]
[343270087,1732536711485,-150.0,0.00047986,30]
[343270088,1732536711500,-5000.0,0.00047991,15]
[343270089,1732536711515,-100000.0,0.00048,36]
[343270090,1732536711530,-206.32923431,0.00048,120]
[343270091,1732536711545,-2521.8652937,0.00048,120]
[343270092,1732536711566,-2000.0,0.00048,90]
[343270093,1732536711582,-4300.0,0.00048,7]
[343270094,1732536711597,-833.55,0.00048,3]
[343270095,1732536711612,-151.0,0.00048,14]
[343270096,1732536711628,-647.78672185,0.00048007,30]
[343270097,1732536711645,-269.42411782,0.00048007,30]
[343270098,1732536711661,-207.09345256,0.00048007,30]
[343270099,1732536711676,-150.0,0.00048007,30]
[343270100,1732536711691,-1010.96,0.0004803,103]
[343270101,1732536711705,-1096.20661384,0.00048047,120]
[343270102,1732536711720,-1038.62908902,0.00048047,120]
[343270103,1732536711734,-2000.0,0.00048055,120]
[343270104,1732536711748,-647.78672185,0.00048058,30]
[343270105,1732536711763,-269.42411782,0.00048058,30]
[343270106,1732536711777,-207.09345256,0.00048058,30]
[343270107,1732536711791,-150.0,0.00048062,30]
[343270108,1732536711806,-150.0,0.00048072,30]
[343270109,1732536711820,-1062.06,0.00048082,120]
[343270110,1732536711834,-647.78672185,0.0004811,30]
[343270111,1732536711849,-269.42411782,0.0004811,30]
[343270112,1732536711865,-207.09345256,0.0004811,30]
[343270113,1732536711878,-150.0,0.00048159,30]
[343270114,1732536711895,-647.78672185,0.00048162,30]
[343270115,1732536711910,-269.42411782,0.00048162,30]
[343270116,1732536711924,-207.09345256,0.00048162,30]
[343270117,1732536711941,-150.0,0.00048162,30]
[343270118,1732536711956,-150.0,0.00048184,30]
[343270119,1732536711970,-153.01,0.000482,45]
[343270120,1732536711985,-153.01,0.000482,45]
[343270121,1732536712005,-153.01,0.000482,45]
[343270122,1732536712020,-153.01,0.000482,45]
[343270123,1732536712036,-153.01,0.000482,45]
[343270124,1732536712237,-153.01,0.000482,45]
[343270125,1732536712249,-153.01,0.000482,45]
[343270126,1732536712258,-153.01,0.000482,45]
[343270127,1732536712268,-153.01,0.000482,45]
[343270128,1732536712277,-647.78672185,0.00048213,30]
[343270129,1732536712288,-269.42411782,0.00048213,30]
[343270130,1732536712297,-207.09345256,0.00048213,30]
[343270131,1732536712306,-150.0,0.00048246,30]
[343270132,1732536712316,-18937.62937292,0.00048246,15]
[343270133,1732536712326,-647.78672185,0.00048265,30]
[343270134,1732536712335,-269.42411782,0.00048265,30]
[343270135,1732536712344,-207.09345256,0.00048265,30]
[343270136,1732536712354,-159.15782191,0.00048295,120]
[343270137,1732536712363,-150.0,0.00048305,30]
[343270138,1732536712372,-482.1620387,0.00048313,4]
[343270139,1732536712382,-647.78672185,0.00048317,30]
[343270140,1732536712393,-269.42411782,0.00048317,30]
[343270141,1732536712402,-207.09345256,0.00048317,30]
[343270142,1732536712412,-150.0,0.00048317,30]
[343270143,1732536712421,-150.0,0.00048332,30]
[343270144,1732536712431,-204.0,0.0004836,30]
[343270145,1732536712440,-204.0,0.0004836,30]
[343270146,1732536712450,-647.78672185,0.00048368,30]
[343270147,1732536712459,-269.42411782,0.00048368,30]
[343270148,1732536712469,-207.09345256,0.00048368,30]
[343270149,1732536712478,-150.0,0.00048419,30]
[343270150,1732536712488,-647.78672185,0.0004842,30]
[343270151,1732536712497,-269.42411782,0.0004842,30]
[343270152,1732536712506,-207.09345256,0.0004842,30]
[343270153,1732536712516,-150.0,0.00048427,30]
[343270154,1732536712526,-180.16225,0.00048457,120]
[343270155,1732536712535,-647.78672185,0.00048471,30]
[343270156,1732536712546,-269.42411782,0.00048471,30]
[343270157,1732536712555,-207.09345256,0.00048471,30]
[343270158,1732536712564,-150.0,0.00048471,30]
[343270159,1732536712573,-1062.06,0.00048493,120]
[343270160,1732536712583,-200.79282668,0.00048493,7]
[343270161,1732536712592,-200000.0,0.000485,120]
[343270162,1732536712602,-151.0,0.000485,14]
[343270163,1732536712611,-256.342723,0.000485,14]
[343270164,1732536712620,-150.0,0.00048505,30]
[343270165,1732536712630,-647.78672185,0.00048523,30]
[343270166,1732536712642,-269.42411782,0.00048523,30]
[343270167,1732536712651,-207.09345256,0.00048523,30]
[343270168,1732536712661,-685.17,0.0004853,2]
[343270169,1732536712670,-1096.20661384,0.00048542,120]
[343270170,1732536712680,-1038.62908902,0.00048542,120]
[343270171,1732536712690,-150.0,0.00048549,30]